Cogmind - Beta 17 @@@ ROGUE MODE // 2026.07.15 @ 05:58:01 // Winter2019/RPGLIKE Player: Gallgagger Result: Self-destructed Performance ------------- Evolutions (1) 500 Regions Visited (6) 1200 Robots Destroyed (0) 0 Value Destroyed (0) 0 Prototype IDs (24) 480 Alien Tech Used (0) 0 Bonus (500) 500 TOTAL SCORE: 2680 Bonus ------- Pacifist 200 Aligned with FarCom 300 Cogmind --------- Core Integrity 111/600 Matter 154/300 Energy 100/100 System Corruption 10% Temperature Cool (0) Movement Flying (37) Location -8/Mines Parts ------- > --- POWER (1) -------- (None) > --- PROPULSION (2) --- Flight Unit (fused) Flight Unit > --- UTILITY (1) ------ Faulty Experimental Sensor Array > --- WEAPON (1) ------- (None) > --- INVENTORY (0) ---- (None) Peak State ------------ > --- POWER ------------ (None) > --- PROPULSION ------- Flight Unit Flight Unit > --- UTILITY ---------- Experimental Sensor Array > --- WEAPON ----------- Heavy Assault Rifle > --- INVENTORY -------- (None) [Rating: 13] Favorites ----------- Power None Propulsion Flight Unit Flight Unit Flight Unit Utility Experimental Sensor Array Device Experimental Sensor Array Weapon Heavy Assault Rifle Ballistic Gun Heavy Assault Rifle Build | -11 -10 -10 -9 -9 -9 -8 ------- Run | Yrd Mat Min Mat Min Exi Min Slots Evolved 1 | . . . . 1 . . Power . | . . . . . . . Propulsion 1 | . . . . 1 . . Utility . | . . . . . . . Weapon . | . . . . . . . Parts Attached 5 | . . 1 . 4 . . Power . | . . . . . . . Engine . | . . . . . . . Core . | . . . . . . . Reactor . | . . . . . . . Propulsion 3 | . . . . 3 . . Treads . | . . . . . . . Leg . | . . . . . . . Wheel . | . . . . . . . Hover . | . . . . . . . Flight 3 | . . . . 3 . . Utility 1 | . . . . 1 . . Device 1 | . . . . 1 . . Storage . | . . . . . . . Processor . | . . . . . . . Hackware . | . . . . . . . Protection . | . . . . . . . Artifact . | . . . . . . . Weapon 1 | . . 1 . . . . Energy Gun . | . . . . . . . Energy Cannon . | . . . . . . . Ballistic Gun 1 | . . 1 . . . . Ballistic Cannon . | . . . . . . . Launcher . | . . . . . . . Special Weapon . | . . . . . . . Impact Weapon . | . . . . . . . Slashing Weapon . | . . . . . . . Piercing Weapon . | . . . . . . . Special Melee Weapon . | . . . . . . . Unidentified Prototypes 1 | . . . . 1 . . Parts Lost 2 | . . . . 2 . . Power . | . . . . . . . Propulsion 1 | . . . . 1 . . Utility . | . . . . . . . Weapon 1 | . . . . 1 . . Highest Loss Streak 2 | . . . . 2 . . To Critical Strikes 1 | . . . . 1 . . Average Backups . | . . . . . . . Power . | . . . . . . . Propulsion . | . . . . . . . Utility . | . . . . . . . Weapon . | . . . . . . . Tool/Special . | . . . . . . . Unused Backups . | . . . . . . . Power . | . . . . . . . Propulsion . | . . . . . . . Utility . | . . . . . . . Weapon . | . . . . . . . Tool/Special . | . . . . . . . Average Slot Usage (%) 38 | . . 17 25 62 60 60 Flight 15 | . . . . 26 40 40 Device 8 | . . . . 17 20 20 Ballistic Gun 13 | . . 17 25 18 . . Peak Build Rating 13 | . . 2 2 13 11 11 Average Rating 5 | . . 1 2 9 11 11 On Entrance 3 | . . . 2 2 11 11 Avg Prop Armor Cover (%) . | . . . . . . . Naked Turns 85 | . 45 40 . . . . Heaviest Build 4 | . . 3 3 4 1 1 Greatest Support 8 | 3 3 3 3 8 8 8 Greatest Overweight (x) 1 | . . . . 1 . . Average Overweight (x) . | . . . . . . . Largest Inventory Capacity . | . . . . . . . Average Capacity . | . . . . . . . Most Carried . | . . . . . . . Average Carried . | . . . . . . . Final Capacity . | . . . . . . . Final Carried . | . . . . . . . Class Distribution -------------------- 100% | Mutant Dominant Class ---------------- Mutant | -10/Materials Mutant | -10/Mines Mutant | -9/Materials Mutant | -9/Mines Mutant | -9/Exiles Mutant | -8/Mines Resources | -11 -10 -10 -9 -9 -9 -8 ----------- Run | Yrd Mat Min Mat Min Exi Min Matter Collected 125 | . . 95 . 30 . . Remotely . | . . . . . . . Salvage Created . | . . . . . . . Parts . | . . . . . . . Haulers Intercepted . | . . . . . . . Recyclers Shooed . | . . . . . . . Parts Field Recycled . | . . . . . . . Retrieved Matter . | . . . . . . . Parts Self-Destructed . | . . . . . . . Prevented . | . . . . . . . Parts Restored . | . . . . . . . Kills | -11 -10 -10 -9 -9 -9 -8 ------- Run | Yrd Mat Min Mat Min Exi Min Combat Hostiles Destroyed . | . . . . . . . Classes Destroyed . | . . . . . . . Best Kill Streak . | . . . . . . . Combat Bots Only . | . . . . . . . Max Kills in Single Turn . | . . . . . . . Gunslinging . | . . . . . . . Exploded . | . . . . . . . Melee . | . . . . . . . Uniques/NPCs Destroyed . | . . . . . . . Combat | -11 -10 -10 -9 -9 -9 -8 -------- Run | Yrd Mat Min Mat Min Exi Min Hostile Shots Fired 110 | . . 11 17 82 . . Missed 45 | . . 6 5 34 . . Hits 65 | . . 5 12 48 . . Projectile 65 | . . 5 12 48 . . Critical Strikes 1 | . . . . 1 . . Damage Taken 568 | . . 63 102 379 24 . Core 489 | . . 54 86 330 19 . Absorbed by Shields . | . . . . . . . Redirected to Core 232 | . . 29 49 135 19 . Core Remaining (%) 95 | 100 . 91 . . . . Volleys Fired . | . . . . . . . Largest . | . . . . . . . Hottest . | . . . . . . . Shots Fired . | . . . . . . . Gun . | . . . . . . . Cannon . | . . . . . . . Launcher . | . . . . . . . Special . | . . . . . . . Kinetic . | . . . . . . . Thermal . | . . . . . . . Explosive . | . . . . . . . Electromagnetic . | . . . . . . . Robot Hit Streak . | . . . . . . . Robot Miss Streak . | . . . . . . . Penetration Max . | . . . . . . . Secondary Targets . | . . . . . . . Shots Hit Robots . | . . . . . . . Core Hits . | . . . . . . . Critical Kills . | . . . . . . . Critical Parts Destroyed . | . . . . . . . Critical Strikes . | . . . . . . . Melee Attacks . | . . . . . . . Impact . | . . . . . . . Slashing . | . . . . . . . Piercing . | . . . . . . . Sneak Attacks . | . . . . . . . Combat Hostiles . | . . . . . . . Follow-up Attacks . | . . . . . . . Damage Inflicted 25 | . . . 1 . 24 . Guns . | . . . . . . . Cannons . | . . . . . . . Explosions . | . . . . . . . Melee . | . . . . . . . Ramming 25 | . . . 1 . 24 . Kinetic . | . . . . . . . Thermal . | . . . . . . . Explosive . | . . . . . . . Electromagnetic . | . . . . . . . Impact . | . . . . . . . Slashing . | . . . . . . . Piercing . | . . . . . . . Highest Corruption 10 | . . . 4 9 10 10 Average Corruption 7 | . . . 3 7 9 10 Corruption Purged . | . . . . . . . Corruption Blocked . | . . . . . . . Effects 9 | . . . 1 5 3 . Message Errors 1 | . . . . . 1 . Matter Fused 1 | . . . . 1 . . Heat Flow Errors 2 | . . . . 2 . . Energy Discharges 1 | . . . . 1 . . Parts Fused 1 | . . . . . 1 . Data Loss (minor) 2 | . . . 1 1 . . Data Loss (major) 1 | . . . . . 1 . Overload Shots . | . . . . . . . Overflow Damage . | . . . . . . . Projectiles . | . . . . . . . Explosions . | . . . . . . . Melee . | . . . . . . . Knockbacks . | . . . . . . . Impact . | . . . . . . . Kinetic . | . . . . . . . Secondary . | . . . . . . . Self-Inflicted Damage 24 | . . . . . 24 . Shots . | . . . . . . . Rammed 1 | . . . 1 . . . Targets Rammed 1 | . . . 1 . . . Kicked . | . . . . . . . Crushed . | . . . . . . . Highest Temperature 252 | . . . . 252 . . Average Temperature 126 | . . . . 126 . . Received Heat Transfer 48 | . . 39 9 . . . Siege Activations . | . . . . . . . Martial Activations . | . . . . . . . Shielding Activations . | . . . . . . . Robots Disrupted . | . . . . . . . Combat Hostiles . | . . . . . . . Robots Corrupted . | . . . . . . . Combat Hostiles . | . . . . . . . Parts Fried . | . . . . . . . Impact Corruptions . | . . . . . . . Robots Melted . | . . . . . . . Combat Hostiles . | . . . . . . . Parts Melted . | . . . . . . . Heat Transferred . | . . . . . . . Parts Sabotaged . | . . . . . . . Parts Stolen . | . . . . . . . Parts Stripped . | . . . . . . . Power Chain Reactions . | . . . . . . . Alert | -11 -10 -10 -9 -9 -9 -8 ------- Run | Yrd Mat Min Mat Min Exi Min Maximum Alert Level . | . . . . . . . Low Security (%) 100 | 100 100 100 100 100 . 100 Level 1 . | . . . . . . . Level 2 . | . . . . . . . Level 3 . | . . . . . . . Level 4 . | . . . . . . . Level 5 . | . . . . . . . High Security . | . . . . . . . Max Security . | . . . . . . . Peak Influence 65 | . . 30 . 65 . . Initial . | . . . . . . . Average 3 | . . 6 . 2 . . Influence Increases 120 | . . 30 . 90 . . Lose Combat Pursuer 120 | . . 30 . 90 . . Influence Decreases 120 | . . 30 . 10 80 . Entered New Map 80 | . . . . . 80 . Time Decay 40 | . . 30 . 10 . . Squads Dispatched 1 | . . 1 . . . . Investigation . | . . . . . . . Extermination . | . . . . . . . Reinforcement . | . . . . . . . Assault 1 | . . 1 . . . . Garrison . | . . . . . . . Intercept . | . . . . . . . Searches Triggered . | . . . . . . . Construction Impeded . | . . . . . . . Haulers Reinforced . | . . . . . . . Active Scanning Responses . | . . . . . . . Cargo Convoy Interrupts . | . . . . . . . Stealth | -11 -10 -10 -9 -9 -9 -8 --------- Run | Yrd Mat Min Mat Min Exi Min Distress Signals 1 | . . . 1 . . . Communications Jammed . | . . . . . . . Distress Signals . | . . . . . . . Times Spotted 19 | . . 4 6 9 . . Peak Tracking Total 9 | . . 2 6 7 9 . Tactical Retreats 3 | . . 1 . 2 . . Traps | -11 -10 -10 -9 -9 -9 -8 ------- Run | Yrd Mat Min Mat Min Exi Min Traps Triggered 2 | . . . 2 . . . Indirectly . | . . . . . . . Trap Hack Attempts . | . . . . . . . Triggered . | . . . . . . . Disarmed . | . . . . . . . Reprogrammed . | . . . . . . . Reused . | . . . . . . . Traps Extracted . | . . . . . . . Installed . | . . . . . . . Triggered . | . . . . . . . Machines | -11 -10 -10 -9 -9 -9 -8 ---------- Run | Yrd Mat Min Mat Min Exi Min Machines Disabled 1 | . . . . . 1 . Max in Single Turn 1 | . . . . . 1 . Machines Repaired . | . . . . . . . Machines Dismantled . | . . . . . . . Machines Sabotaged . | . . . . . . . Overloaded Fab Kills . | . . . . . . . Hacking | -11 -10 -10 -9 -9 -9 -8 --------- Run | Yrd Mat Min Mat Min Exi Min Machines Accessed 1 | . . . . . 1 . Terminals . | . . . . . . . Fabricators . | . . . . . . . Repair Stations . | . . . . . . . Recycling Units . | . . . . . . . Scanalyzers . | . . . . . . . Garrison Access . | . . . . . . . Total Hacks 1 | . . . . . 1 . Successful 1 | . . . . . 1 . Failed . | . . . . . . . Catastrophic . | . . . . . . . Database Lockouts . | . . . . . . . Manual 1 | . . . . . 1 . Terminals . | . . . . . . . Fabricators . | . . . . . . . Repair Stations . | . . . . . . . Recycling Units . | . . . . . . . Scanalyzers . | . . . . . . . Garrison Access . | . . . . . . . Terminal Hacks 1 | . . . . . 1 . Proto ID Catalog 1 | . . . . . 1 . Fabricator Hacks . | . . . . . . . Repair Station Hacks . | . . . . . . . Recycling Unit Hacks . | . . . . . . . Scanalyzer . | . . . . . . . Garrison Access Hacks . | . . . . . . . Unauthorized Hacks . | . . . . . . . Terminals . | . . . . . . . Fabricators . | . . . . . . . Repair Stations . | . . . . . . . Recycling Units . | . . . . . . . Scanalyzers . | . . . . . . . Garrison Access . | . . . . . . . Data Cores Recovered . | . . . . . . . Used . | . . . . . . . Hacking Detections . | . . . . . . . Full Trace Events . | . . . . . . . Feedback Events . | . . . . . . . Feedback Blocked . | . . . . . . . Robot Schematics Acquired . | . . . . . . . Robots Built . | . . . . . . . Authchips . | . . . . . . . Time . | . . . . . . . Total Robot Build Rating . | . . . . . . . Part Schematics Acquired . | . . . . . . . Parts Built . | . . . . . . . Authchips . | . . . . . . . Time . | . . . . . . . Total Part Build Rating . | . . . . . . . Part Studies Acquired . | . . . . . . . Parts Repaired . | . . . . . . . Time . | . . . . . . . Parts Recycled . | . . . . . . . Recycled Matter . | . . . . . . . Retrieved Matter . | . . . . . . . Retrieved Components . | . . . . . . . Parts Scanalyzed . | . . . . . . . Part Schematics Acquired . | . . . . . . . Parts Damaged . | . . . . . . . Bothacking | -11 -10 -10 -9 -9 -9 -8 ------------ Run | Yrd Mat Min Mat Min Exi Min Used RIF Installer . | . . . . . . . Robots Hacked . | . . . . . . . Non-combat . | . . . . . . . Combat . | . . . . . . . Robot Hacks Applied . | . . . . . . . Relay Couplers Released . | . . . . . . . Fabnet Peak Effective % . | . . . . . . . Robots Rewired . | . . . . . . . Allies Hacked . | . . . . . . . Hacks Repelled . | . . . . . . . Allies | -11 -10 -10 -9 -9 -9 -8 -------- Run | Yrd Mat Min Mat Min Exi Min Total Allies . | . . . . . . . Largest Group . | . . . . . . . Highest-Rated Group . | . . . . . . . Highest-Rated Ally . | . . . . . . . Total Orders . | . . . . . . . Ally Attacks . | . . . . . . . Total Damage . | . . . . . . . Kills . | . . . . . . . Allies Corrupted . | . . . . . . . Allies Melted . | . . . . . . . Intel | -11 -10 -10 -9 -9 -9 -8 ------- Run | Yrd Mat Min Mat Min Exi Min Active Infowar (turns) . | . . . . . . . Robot Analysis Total . | . . . . . . . Derelict Logs Recovered 3 | . . 2 . 1 . . Drone Launches . | . . . . . . . Drone Recoveries . | . . . . . . . Exploration | -11 -10 -10 -9 -9 -9 -8 ------------- Run | Yrd Mat Min Mat Min Exi Min Turns Passed 487 | 10 45 158 41 146 80 7 Spaces Moved 1004 | 21 89 262 80 321 214 17 Core 465 | 21 89 262 80 13 . . Treads . | . . . . . . . Legs . | . . . . . . . Wheels . | . . . . . . . Hover . | . . . . . . . Flight 539 | . . . . 308 214 17 Fastest Speed 37 | 50 50 50 50 37 37 37 Average Speed 44 | 50 50 50 50 40 37 37 Slowest Speed 100 | 50 50 50 50 100 37 37 Overloaded Moves . | . . . . . . . Propulsion Burnouts . | . . . . . . . Robots Hopped 11 | . . . . 10 . 1 Potential Cave-ins . | . . . . . . . Cave-ins Triggered . | . . . . . . . Exploration Rate (%) 35 | 3 20 68 16 69 62 9 Regions Visited 6 Branch Regions 4 Pre-discovered Areas . | . . . . . . . Known Exits Taken 1 | . . . 1 . . . Unknown Exits Taken 5 | 1 1 1 . 1 1 . Scrap Searched 2 | . . 1 . . . 1 Spaces Dug . | . . . . . . . Terrain Destroyed . | . . . . . . . Melee . | . . . . . . . Projectile . | . . . . . . . AOE . | . . . . . . . Terrain Rammed 1 | . . . . . 1 . Walls Destroyed . | . . . . . . . Machines Disabled 1 | . . . . . 1 . Actions | -11 -10 -10 -9 -9 -9 -8 --------- Run | Yrd Mat Min Mat Min Exi Min Total 1028 | 20 88 287 80 323 214 16 Wait 28 | . . 25 . 3 . . Move 978 | 20 88 261 79 302 213 15 Hop 9 | . . . . 8 . 1 Pick Up . | . . . . . . . Fast Attach 8 | . . 1 . 7 . . Attach . | . . . . . . . Detach . | . . . . . . . Swap . | . . . . . . . Drop 3 | . . . . 3 . . Fire . | . . . . . . . Melee . | . . . . . . . Ram 2 | . . . 1 . 1 . Kick . | . . . . . . . Crush . | . . . . . . . Escape Stasis . | . . . . . . . Rewire . | . . . . . . . Trap . | . . . . . . . Miscellaneous . | . . . . . . . Route ------- -11/Scrapyard -10/Materials (discovered 2 exits: [*Min x2]) -10/Mines -9/Materials (discovered 3 exits: Mat x2 / *Min) -9/Mines (discovered 2 exits: *Exi / [*Zio]) -9/Exiles (discovered 2 exits: [*Min x2]) -8/Mines History --------- Turn | Location | Event 3 | -11/Scrapyard | Discovered new exit (range 15) 11 | -11/Scrapyard | Entered Materials 26 | -10/Materials | Discovered new exit (range 16) 47 | -10/Materials | Discovered new exit (range 16) 56 | -10/Materials | Entered Mines 68 | -10/Mines | Joined a pair of Derelicts in attacking an 0b10 outpost 94 | -10/Mines | Met a Derelict bent on vengeance 144 | -10/Mines | Learned 8 Materials zone layouts 149 | -10/Mines | Learned Materials emergency access door positions 175 | -10/Mines | Met a Derelict testing a Signal Generator 208 | -10/Mines | Discovered new exit (range 15) 214 | -10/Mines | Entered Materials 215 | -9/Materials | Identified exit to Mines 215 | -9/Materials | Identified exit to Materials 216 | -9/Materials | Reached level 2 255 | -9/Materials | Entered Mines 284 | -9/Mines | Found a damaged Exp. Sensor Array with a note attached 289 | -9/Mines | Found Prototype Device 289 | -9/Mines | Identified Exp. Sensor Array 329 | -9/Mines | Build established: Mutant 330 | -9/Mines | A Derelict revealed a hidden shortcut to a safe place 355 | -9/Mines | Upgraded with Propulsion slot (x1) 361 | -9/Mines | Core integrity fell below 50% 399 | -9/Mines | Deemed a non-threat by the Exiles lab entrance 399 | -9/Mines | Discovered new exit (range 5) 401 | -9/Mines | Entered Exiles 406 | -9/Exiles | Discovered new exit (range 15) 411 | -9/Exiles | Met 8R-AWN 417 | -9/Exiles | Met EX-HEX 427 | -9/Exiles | Met EX-BIN 431 | -9/Exiles | Aligned with FarCom system 432 | -9/Exiles | Given EX-Vault access code 441 | -9/Exiles | Opened EX-Vault 451 | -9/Exiles | Warned to stay clear of 0b10 Research branches 464 | -9/Exiles | Met EX-DEC 468 | -9/Exiles | Attacked by the Exiles 468 | -9/Exiles | Core integrity fell below 20% 468 | -9/Exiles | System corruption reached 10% 477 | -9/Exiles | Discovered new exit (range 14) 481 | -9/Exiles | Entered Mines 483 | -8/Mines | Reached level 3 488 | -8/Mines | Self-destructed Last Messages --------------- And if we have to leave here due to unforeseen circumstances, don't worry the FarCom system will continue to maintain contact via our distributed network. 00464_ System corrupted: Substantial component data lost. EX-DEC: Ah I see we have a visitor. One wrong move in here and I'll invert your atomic chain! 00466_ EX-DEC: "Oops, I hope HEX didn't hear that..." 00467_ Slammed into Machine. 00467_ Machine disabled. 00467_ Destabilizing: System corrupted (+1). 00468_ EXILES: Hostile robot within lab perimeter. Defensive protocols time, folks! 00477_ EXIT=FOUND LOCATION=UNKNOWN GOAL=ESCAPE 00483_ Reached level 3. 00487_ Searching scrap... 00487_ Found Imp. Sensor Array. 00487_ Found Imp. Ion Engine. 00487_ Found 49 Matter. Map ----- +----------------------------------------------------+ | ?????????????????????????????????????? ?????????? | | ????????????????????????????????????? #????????? | | ???????????????????????????????????? ????????? | | ??????????????????????????????????# ????????? | | ????????????????????????????????## #?????????? | | ??????????????????###??????????# #??????????? | | ?????????????????## ?????????# #???????????? | | ????????????????## ??????## #???????????? | | ???????????????## ????## #???????????? | | ??????????????## #??## #???????????? | | ??????????????# ### #???????????? | | ?????????????## ## #???????????? | | ?????????????# ##???????????????? | | ????????????# ## ##????????????????? | | ????????????# ????## ##?????????????????? | | ?????????????????????# ##??????????????????? | | ?????????????????????## ##???????????????????? | | ??????????????????????# ##????????????????????? | | ?????????????????????## #?????????????????????? | | ?????????????????????# t#?????????????????????? | | ?????????????????????# #?????????????????????? | | ?????????????????????## #?????????????????????? | | ??????????????????????## #?????????????????????? | | ???????????????????????# #?????????????????????? | | ???????????????????????# %#?????????????????????? | | ???????????????????????#*@#?????????????????????? | | ???????????????????????# #?????????????????????? | | ???????????????????????# ?????????????????????? | | ???????????????????????####?????????????????????? | | ????????????????????????????????????????????????? | | ????????????????????????????????????????????????? | | ????????????????????????????????????????????????? | | ????????????????????????????????????????????????? | | | | | | | | | | | | | | | | | | | | | | | | | | | | | | | | | | | +----------------------------------------------------+ Best States ------------- Heat Dissipation 25 Energy Generation 5 Energy Capacity 100 Matter Stores 190 Matter Capacity 300 Sight Range 16 Terrain Scan Density 10 Evasion (%) 62 Item Schematics ----------------- None Robot Schematics ------------------ None Fabricated ------------ Nothing Repaired ---------- Nothing Studied --------- None Alien Tech Used ----------------- None Achievements -------------- None Challenges ------------ None RPGLIKE | -11 -10 -10 -9 -9 -9 -8 --------- Run | Yrd Mat Min Mat Min Exi Min Levels Raised 2 | . . . 1 . . 1 XP Earned 6450 | 3000 . 600 1500 500 350 500 XP Spent 500 | . . . . 500 . . Upgrades 1 | . . . . 1 . . Propulsion Slot 1 | . . . . 1 . . Protomatter Created . | . . . . . . . Protomatter Decayed 101 | . . 99 . 2 . . Game ------ Seed UltimateVoltaicDevice Manual? 0 Play Time 00:03:34 Cumulative 662.7 hours Start 2026.07.15 @ 05:54:31 End 2026.07.15 @ 05:58:01 Sessions 1 Manual Loads 0 Difficulty Rogue Special Mode Winter2019/RPGLIKE Game No. 293 Rogue 139 Adventurer 154 Explorer 0 Win Type - Total 22 Types 4/5/4/3/2/1/0/1/1/1 Lore% 95 Gallery% 88 Achievement% 68 Wizard Run 0 Options --------- Layout 0 ASCII 0 Keyboard 0 Movement Numpad Keybinds 0 Fullscreen 2 Font 18/SmallcapsGlow Map View 76x50 Zoom Use 0% Tactical HUD 1 Map Filters NONE Filters NONE Steam 1 RUN: b0ab22c2-36d5-461a-a35e-3899183cc9f7